Workbook

Sheet 出区明细 (hidden)
A1: 附页：
A2: 出区展示申请表编号：202105003 | I2: 一般贸易计税
A3: 序号 | B3: 账册备案序号 | C3: 料件号 | D3: 商品编码 | E3: 商品名称 | F3: 申请数量 | G3: 库存数量 | H3: 已出区数量 | I3: 单价（元） | J3: 总价（元） | K3: 电商税款（元） | L3: 关税率（%） | M3: 消费税率（%） | N3: 增值税率（%） | O3: 关税税款（元） | P3: 消费税税款（元） | Q3: 增值税税款（元）
A4: 1 | B4: 600 | C4: ISZWCW00047 | D4: 1901101090 | E4: 爱他美白金版3段奶粉900G新版 | F4: 360 | G4: 934 | H4: 2726 | I4: 99 | J4: =I4*F4 -> 35640 | L4: 5 | M4: 0 | N4: 13 | O4: =J4*L4/100 -> 1782 | R4: 900g/罐
A5: 2 | B5: 545 | C5: ISZWCW00364 | D5: 2106909090 | E5: BREATHPEARLS天然清新口气缓解肠胃软胶囊50粒 | F5: 360 | G5: 1015 | H5: 744 | I5: 299 | J5: =I5*F5 -> 107640 | L5: 12 | M5: 0 | N5: 13 | O5: =J5*L5/100 -> 12916.8 | R5: 50粒/瓶
A6: 3 | B6: 639 | C6: ISZWCW03244 | D6: 1901101090 | E6: APTAMIL爱他美婴儿奶粉金装3段900G | F6: 360 | G6: 559 | H6: 1320 | I6: 99 | J6: 35640 | L6: 5 | M6: 0 | N6: 13 | O6: 1782 | R6: 900g/罐
A7: 4 | B7: 633 | C7: ISZWCW03277 | D7: 3304990049 | E7: UTENA佑天兰奢华璞俐莎滋润果冻面膜(双效蜂王乳) | F7: 96 | G7: 157 | H7: 270 | I7: 41.02 | J7: 3937.92 | L7: 1 | M7: 0 | N7: 13 | O7: 39.3792 | R7: 3片/盒
A8: 5 | B8: 4244 | C8: ISZWCW04780 | D8: 9616200000 | E8: 美妆蛋 | F8: 48 | G8: 48 | H8: 0 | I8: 11.2 | J8: 537.6 | L8: 6 | M8: 0 | N8: 13 | O8: 32.256 | R8: 1个/盒
A9: 6 | B9: 794 | C9: ISZWCW04781 | D9: 3304990029 | E9: 面霜 | F9: 72 | G9: 72 | H9: 144 | I9: 40.25 | J9: 2898 | L9: 1 | M9: 15 | N9: 13 | O9: 28.98 | R9: 50g/瓶
A10: 7 | B10: 4245 | C10: ISZWCW04782 | D10: 9616200000 | E10: 美妆蛋 | F10: 48 | G10: 48 | H10: 0 | I10: 11.2 | J10: 537.6 | L10: 6 | M10: 0 | N10: 13 | O10: 32.256 | R10: 1个/盒
A11: 8 | B11: 790 | C11: ISZWCW04783 | D11: 9616200000 | E11: 美妆蛋 | F11: 48 | G11: 66 | H11: 96 | I11: 11.2 | J11: 537.6 | L11: 6 | M11: 0 | N11: 13 | O11: 32.256 | R11: 1个/盒
A12: 9 | B12: 4246 | C12: ISZWCW04784 | D12: 9616200000 | E12: 美妆蛋 | F12: 48 | G12: 48 | H12: 0 | I12: 11.2 | J12: 537.6 | L12: 6 | M12: 0 | N12: 13 | O12: 32.256 | R12: 1个/盒
A13: 10 | B13: 4247 | C13: ISZWCW04785 | D13: 9616200000 | E13: 美妆蛋 | F13: 48 | G13: 48 | H13: 0 | I13: 11.2 | J13: 537.6 | L13: 6 | M13: 0 | N13: 13 | O13: 32.256 | R13: 1个/盒
A14: 11 | B14: 789 | C14: ISZWCW04787 | D14: 9616200000 | E14: 美妆蛋 | F14: 48 | G14: 76 | H14: 96 | I14: 11.2 | J14: 537.6 | L14: 6 | M14: 0 | N14: 13 | O14: 32.256 | R14: 1个/盒
A15: 12 | B15: 4248 | C15: ISZWCW04789 | D15: 9616200000 | E15: 美妆蛋 | F15: 48 | G15: 48 | H15: 0 | I15: 11.2 | J15: 537.6 | L15: 6 | M15: 0 | N15: 13 | O15: 32.256 | R15: 1个/盒
A16: 13 | B16: 2788 | C16: ISZWCW13192 | D16: 3304990039 | E16: 身体乳 | F16: 24 | G16: 38 | H16: 72 | I16: 67.1 | J16: 1610.4 | L16: 1 | M16: 15 | N16: 13 | O16: 16.104 | R16: 1L/瓶
A17: 14 | B17: 2754 | C17: ISZWCW13843 | D17: 2106909090 | E17: 免疫健康片 | F17: 72 | G17: 85 | H17: 96 | I17: 55.65 | J17: 4006.8 | L17: 12 | M17: 0 | N17: 13 | O17: 480.816 | R17: 60片/瓶
A18: 15 | B18: 2310 | C18: ISZWCW15237 | D18: 3305900000 | E18: 发膜 | F18: 24 | G18: 38 | H18: 42 | I18: 8.37 | J18: 200.88 | L18: 3 | M18: 0 | N18: 13 | O18: 6.0264 | R18: 30ml/袋
A19: 16 | B19: 2542 | C19: ISZWCW15451 | D19: 3401300090 | E19: 洁面啫喱 | F19: 36 | G19: 36 | H19: 72 | I19: 26.01 | J19: 936.36 | L19: 6.5 | M19: 0 | N19: 13 | O19: 60.8634 | R19: 100ml/支
A20: 17 | B20: 2543 | C20: ISZWCW15452 | D20: 3401300090 | E20: 洁面磨砂啫喱 | F20: 36 | G20: 36 | H20: 78 | I20: 26.01 | J20: 936.36 | L20: 6.5 | M20: 0 | N20: 13 | O20: 60.8634 | R20: 150ml/支
A21: 18 | B21: 2544 | C21: ISZWCW15453 | D21: 3401300090 | E21: 洁面啫喱 | F21: 24 | G21: 41 | H21: 96 | I21: 26.01 | J21: 624.24 | L21: 6.5 | M21: 0 | N21: 13 | O21: 40.5756 | R21: 100ml/支
A22: 19 | B22: 899 | C22: ISZWCW15988 | D22: 3401300090 | E22: 原味沐浴露 | F22: 24 | G22: 43 | H22: 82 | I22: 2 | J22: 48 | L22: 6.5 | M22: 0 | N22: 13 | O22: 3.12 | R22: 100ml/瓶
A23: 20 | B23: 2460 | C23: ISZWCW17704 | D23: 3305100090 | E23: 洗发水 | F23: 24 | G23: 51 | H23: 72 | I23: 17.99 | J23: 431.76 | L23: 2 | M23: 0 | N23: 13 | O23: 8.6352 | R23: 315ml/瓶
A24: 21 | B24: 2451 | C24: ISZWCW17705 | D24: 3305900000 | E24: 护发素 | F24: 24 | G24: 24 | H24: 48 | I24: 17.99 | J24: 431.76 | L24: 3 | M24: 0 | N24: 13 | O24: 12.9528 | R24: 315ml/瓶
A25: 22 | B25: 2454 | C25: ISZWCW17709 | D25: 3305900000 | E25: 护发素 | F25: 24 | G25: 28 | H25: 48 | I25: 17.99 | J25: 431.76 | L25: 3 | M25: 0 | N25: 13 | O25: 12.9528 | R25: 315ml/瓶
A26: 23 | B26: 2452 | C26: ISZWCW17710 | D26: 3305100090 | E26: 洗发水 | F26: 48 | G26: 48 | H26: 60 | I26: 17.99 | J26: 863.52 | L26: 2 | M26: 0 | N26: 13 | O26: 17.2704 | R26: 315ml/瓶
A27: 24 | B27: 2449 | C27: ISZWCW17714 | D27: 3305100090 | E27: 洗发水 | F27: 47 | G27: 47 | H27: 54 | I27: 17.99 | J27: 845.53 | L27: 2 | M27: 0 | N27: 13 | O27: 16.9106 | R27: 315ml/瓶
A28: 25 | B28: 2448 | C28: ISZWCW17715 | D28: 3305900000 | E28: 护发素 | F28: 12 | G28: 16 | H28: 48 | I28: 17.99 | J28: 215.88 | L28: 3 | M28: 0 | N28: 13 | O28: 6.4764 | R28: 315ml/瓶
A29: 26 | B29: 2824 | C29: ISZWCW20189 | D29: 1901101090 | E29: 奶粉 | F29: 108 | G29: 126 | H29: 72 | I29: 97.34 | J29: 10512.72 | L29: 5 | M29: 0 | N29: 13 | O29: 525.636 | R29: 900g/罐
A30: 27 | B30: 2463 | C30: ISZWCW20422 | D30: 3924100000 | E30: 餐食套装 | F30: 24 | G30: 34 | H30: 72 | I30: 18.87 | J30: 452.88 | L30: 6.5 | M30: 0 | N30: 13 | O30: 29.4372 | R30: 2件/套
A31: 28 | B31: 2766 | C31: ISZWCW20497 | D31: 2106909090 | E31: 蛋白粉 | F31: 12 | G31: 25 | H31: 24 | I31: 57.96 | J31: 695.52 | L31: 12 | M31: 0 | N31: 13 | O31: 83.4624 | R31: 800g/罐
A32: 29 | B32: 2489 | C32: ISZWCW22932 | D32: 3306101090 | E32: 牙膏 | F32: 72 | G32: 72 | H32: 48 | I32: 21.63 | J32: 1557.36 | L32: 3 | M32: 0 | N32: 13 | O32: 46.7208 | R32: 80g/支
A33: 30 | B33: 2149 | C33: ISZWCW23868 | D33: 1704900000 | E33: 软糖 | F33: 216 | G33: 246 | H33: 240 | I33: 42.84 | J33: 9253.44 | L33: 10 | M33: 0 | N33: 13 | O33: 925.344 | R33: 50粒/瓶
A34: 31 | B34: 2213 | C34: ISZWCW24275 | D34: 3304990039 | E34: 乳液 | F34: 12 | G34: 12 | H34: 48 | I34: 72.31 | J34: 867.72 | L34: 1 | M34: 15 | N34: 13 | O34: 8.6772 | R34: 1L/瓶
A35: 32 | B35: 2252 | C35: ISZWCW25375 | D35: 2106909090 | E35: 蛋白粉 | F35: 6 | G35: 17 | H35: 48 | I35: 2.87 | J35: 17.22 | L35: 12 | M35: 0 | N35: 13 | O35: 2.0664 | R35: 40g/袋
A36: 33 | B36: 2758 | C36: ISZWCW26116 | D36: 3304990029 | E36: 滋润乳 | F36: 24 | G36: 38 | H36: 60 | I36: 56 | J36: 1344 | L36: 1 | M36: 15 | N36: 13 | O36: 13.44 | R36: 500g/瓶
A37: 34 | B37: 2768 | C37: ISZWCW26496 | D37: 2106909090 | E37: 蛋白粉 | F37: 12 | G37: 28 | H37: 30 | I37: 58.36 | J37: 700.32 | L37: 12 | M37: 0 | N37: 13 | O37: 84.0384 | R37: 1kg/罐
A38: 35 | B38: 2402 | C38: ISZWCW32054 | D38: 3304990029 | E38: 润手霜 | F38: 24 | G38: 48 | H38: 72 | I38: 15.26 | J38: 366.24 | L38: 1 | M38: 15 | N38: 13 | O38: 3.6624 | R38: 50g/支
A39: 36 | B39: 2280 | C39: ISZWCW32909 | D39: 3306101090 | E39: 牙膏 | F39: 48 | G39: 48 | H39: 72 | I39: 6.3 | J39: 302.4 | L39: 3 | M39: 0 | N39: 13 | O39: 9.072 | R39: 50g/支
A40: 37 | B40: 2617 | C40: ISZWCW33461 | D40: 3401300090 | E40: 洁面液 | F40: 36 | G40: 37 | H40: 72 | I40: 33.88 | J40: 1219.68 | L40: 6.5 | M40: 0 | N40: 13 | O40: 79.2792 | R40: 150ml/瓶
A41: 38 | B41: 2545 | C41: ISZWCW33476 | D41: 3304990039 | E41: 保湿霜 | F41: 12 | G41: 12 | H41: 54 | I41: 26.01 | J41: 312.12 | L41: 1 | M41: 15 | N41: 13 | O41: 3.1212 | R41: 75ml/盒
A42: 39 | B42: 2742 | C42: ISZWCW34739 | D42: 3304990029 | E42: 润肤乳 | F42: 48 | G42: 48 | H42: 60 | I42: 51.8 | J42: 2486.4 | L42: 1 | M42: 15 | N42: 13 | O42: 24.864 | R42: 500g/瓶
A43: 40 | B43: 2211 | C43: ISZWCW35221 | D43: 3304990039 | E43: 润肤乳 | F43: 24 | G43: 53 | H43: 108 | I43: 8.65 | J43: 207.6 | L43: 1 | M43: 15 | N43: 13 | O43: 2.076 | R43: 71ml/支
A44: 41 | B44: 2816 | C44: ISZWCW36113 | D44: 3304990029 | E44: 润肤乳 | F44: 18 | G44: 18 | H44: 48 | I44: 90.62 | J44: 1631.16 | L44: 1 | M44: 15 | N44: 13 | O44: 16.3116 | R44: 1kg/瓶
A45: 42 | B45: 2745 | C45: ISZWCW38263 | D45: 1504200091 | E45: 鱼油+磷虾油胶囊 | F45: 20 | G45: 27 | H45: 60 | I45: 53.9 | J45: 1078 | L45: 6 | M45: 0 | N45: 13 | O45: 64.68 | R45: 400粒/罐
A46: 43 | B46: 2595 | C46: ISZWCW38407 | D46: 3401300090 | E46: 洁面乳 | F46: 48 | G46: 53 | H46: 24 | I46: 31.26 | J46: 1500.48 | L46: 6.5 | M46: 0 | N46: 13 | O46: 97.5312 | R46: 150g/支
A47: 44 | B47: 2479 | C47: ISZWCW38697 | D47: 3305900000 | E47: 润发精油 | F47: 24 | G47: 49 | H47: 144 | I47: 20.97 | J47: 503.28 | L47: 3 | M47: 0 | N47: 13 | O47: 15.0984 | R47: 75ml/瓶
A48: 45 | B48: 2420 | C48: ISZWCW38855 | D48: 3305100090 | E48: 洗发水 | F48: 24 | G48: 57 | H48: 72 | I48: 16.03 | J48: 384.72 | L48: 2 | M48: 0 | N48: 13 | O48: 7.6944 | R48: 400ml/瓶
A49: 46 | B49: 2624 | C49: ISZWCW39391 | D49: 2106909090 | E49: 奶蓟草护肝胶囊 | F49: 63 | G49: 68 | H49: 105 | I49: 35 | J49: 2205 | L49: 12 | M49: 0 | N49: 13 | O49: 264.6 | R49: 100粒/瓶
A50: 47 | B50: 2572 | C50: ISZWCW39472 | D50: 3305900000 | E50: 护发精华油 | F50: 24 | G50: 24 | H50: 48 | I50: 28.11 | J50: 674.64 | L50: 3 | M50: 0 | N50: 13 | O50: 20.2392 | R50: 150ml/瓶
A51: 48 | B51: 2148 | C51: ISZWCW39536 | D51: 1704900000 | E51: 软糖 | F51: 96 | G51: 214 | H51: 301 | I51: 33.57 | J51: 3222.72 | L51: 10 | M51: 0 | N51: 13 | O51: 322.272 | R51: 60粒/瓶
A52: 49 | B52: 2389 | C52: ISZWCW40080 | D52: 3306901000 | E52: 漱口水 | F52: 48 | G52: 52 | H52: 84 | I52: 14.11 | J52: 677.28 | L52: 3 | M52: 0 | N52: 13 | O52: 20.3184 | R52: 250ml/瓶
A53: 50 | B53: 2781 | C53: ISZWCW40276 | D53: 1901101090 | E53: 奶粉 | F53: 360 | G53: 624 | H53: 960 | I53: 63.77 | J53: 22957.2 | L53: 5 | M53: 0 | N53: 13 | O53: 1147.86 | R53: 900g/罐
A54: 51 | B54: 2536 | C54: ISZWCW41168 | D54: 3304990029 | E54: 保湿霜 | F54: 48 | G54: 48 | H54: 144 | I54: 25.31 | J54: 1214.88 | L54: 1 | M54: 15 | N54: 13 | O54: 12.1488 | R54: 140g/支
A55: 52 | B55: 2390 | C55: ISZWCW42475 | D55: 3306901000 | E55: 漱口水 | F55: 32 | G55: 34 | H55: 36 | I55: 14.11 | J55: 451.52 | L55: 3 | M55: 0 | N55: 13 | O55: 13.5456 | R55: 250ml/瓶
A56: 53 | B56: 733 | C56: ISZWCW42927 | D56: 9603210000 | E56: 牙刷 | F56: 36 | G56: 40 | H56: 60 | I56: 15.26 | J56: 549.36 | L56: 8 | M56: 0 | N56: 13 | O56: 43.9488 | R56: 1个
A57: 54 | B57: 2721 | C57: ISZWCW47435 | D57: 3401300090 | E57: 洗面奶 | F57: 120 | G57: 120 | H57: 36 | I57: 44.94 | J57: 5392.8 | L57: 6.5 | M57: 0 | N57: 13 | O57: 350.532 | R57: 500ml/瓶
A58: 55 | B58: 1578 | C58: ISZWCW47439 | D58: 3304990029 | E58: 祛痘凝胶 | F58: 149 | G58: 229 | H58: 188 | I58: 17.42 | J58: 2595.58 | L58: 1 | M58: 15 | N58: 13 | O58: 25.9558 | R58: 50g/盒
A59: 56 | B59: 2488 | C59: ISZWCW47590 | D59: 3304990039 | E59: 润肤乳 | F59: 32 | G59: 32 | H59: 72 | I59: 21.6 | J59: 691.2 | L59: 1 | M59: 15 | N59: 13 | O59: 6.912 | R59: 225ml/支
A60: 57 | B60: 2487 | C60: ISZWCW47593 | D60: 3304990029 | E60: 护手霜 | F60: 48 | G60: 58 | H60: 108 | I60: 21.6 | J60: 1036.8 | L60: 1 | M60: 15 | N60: 13 | O60: 10.368 | R60: 100g/支
A61: 58 | B61: 2275 | C61: ISZWCW47603 | D61: 5601210000 | E61: 棉签支 | F61: 48 | G61: 49 | H61: 48 | I61: 5.18 | J61: 248.64 | L61: 8 | M61: 0 | N61: 13 | O61: 19.8912 | R61: 150支/盒
A62: 59 | B62: 2682 | C62: ISZWCW47939 | D62: 3304990039 | E62: 保湿霜 | F62: 24 | G62: 28 | H62: 66 | I62: 40.36 | J62: 968.64 | L62: 1 | M62: 15 | N62: 13 | O62: 9.6864 | R62: 50ml/瓶
A63: 60 | B63: 2173 | C63: ISZWCW48374 | D63: 3305900000 | E63: 护发素 | F63: 24 | G63: 42 | H63: 120 | I63: 8.96 | J63: 215.04 | L63: 3 | M63: 0 | N63: 13 | O63: 6.4512 | R63: 88.7ml/瓶
A64: 61 | B64: 2590 | C64: ISZWCW48383 | D64: 3305900000 | E64: 护发素 | F64: 12 | G64: 53 | H64: 72 | I64: 30.98 | J64: 371.76 | L64: 3 | M64: 0 | N64: 13 | O64: 11.1528 | R64: 390ml/瓶
A65: 62 | B65: 2900 | C65: ISZWCW48406 | D65: 3306101090 | E65: 牙膏 | F65: 72 | G65: 72 | H65: 60 | I65: 20.27 | J65: 1459.44 | L65: 3 | M65: 0 | N65: 13 | O65: 43.7832 | R65: 50g/支
A66: 63 | B66: 2760 | C66: ISZWCW48448 | D66: 3304990029 | E66: 保湿霜 | F66: 42 | G66: 43 | H66: 28 | I66: 56.04 | J66: 2353.68 | L66: 1 | M66: 15 | N66: 13 | O66: 23.5368 | R66: 150g/盒
A67: 64 | B67: 2478 | C67: ISZWCW48457 | D67: 3304990039 | E67: 润肤乳 | F67: 24 | G67: 51 | H67: 96 | I67: 20.76 | J67: 498.24 | L67: 1 | M67: 15 | N67: 13 | O67: 4.9824 | R67: 100ml/支
A68: 65 | B68: 2580 | C68: ISZWCW48468 | D68: 3304990039 | E68: 防晒霜 | F68: 24 | G68: 81 | H68: 108 | I68: 29.75 | J68: 714 | L68: 1 | M68: 15 | N68: 13 | O68: 7.14 | R68: 75ml/瓶
A69: 66 | B69: 2278 | C69: ISZWCW48475 | D69: 3306101090 | E69: 牙膏 | F69: 76 | G69: 80 | H69: 100 | I69: 5.71 | J69: =I69*F69 -> 433.96 | L69: 3 | M69: 0 | N69: 13 | O69: =J69*L69/100 -> 13.0188 | R69: 2件/袋
A70: 67 | B70: 2205 | C70: ISZWCW48484 | D70: 3304990039 | E70: 保湿乳 | F70: 24 | G70: 24 | H70: 96 | I70: 22.54 | J70: 540.96 | L70: 1 | M70: 15 | N70: 13 | O70: 5.4096 | R70: 225ml/支
A71: 68 | B71: 2208 | C71: ISZWCW48486 | D71: 3304990029 | E71: 保湿霜 | F71: 24 | G71: 24 | H71: 72 | I71: 33.81 | J71: 811.44 | L71: 1 | M71: 15 | N71: 13 | O71: 8.1144 | R71: 312g/瓶
A72: 69 | B72: 2751 | C72: ISZWCW48488 | D72: 3304990029 | E72: 保湿霜 | F72: 72 | G72: 72 | H72: 72 | I72: 54.85 | J72: 3949.2 | L72: 1 | M72: 15 | N72: 13 | O72: 39.492 | R72: 206g/支
A73: 70 | B73: 2901 | C73: ISZWCW48495 | D73: 3306101090 | E73: 牙膏 | F73: 24 | G73: 57 | H73: 108 | I73: 13.23 | J73: 317.52 | L73: 3 | M73: 0 | N73: 13 | O73: 9.5256 | R73: 50g/盒
A74: 71 | B74: 2898 | C74: ISZWCW48496 | D74: 3306101090 | E74: 牙膏 | F74: 48 | G74: 67 | H74: 108 | I74: 13.23 | J74: 635.04 | L74: 3 | M74: 0 | N74: 13 | O74: 19.0512 | R74: 50g/盒
A75: 72 | B75: 2401 | C75: ISZWCW48511 | D75: 3304990029 | E75: 润手霜 | F75: 72 | G75: 80 | H75: 72 | I75: 15.26 | J75: 1098.72 | L75: 1 | M75: 15 | N75: 13 | O75: 10.9872 | R75: 50g/支
A76: 73 | B76: 2501 | C76: ISZWCW48517 | D76: 3304990039 | E76: 爽肤水 | F76: 54 | G76: 54 | H76: 135 | I76: 22.75 | J76: 1228.5 | L76: 1 | M76: 15 | N76: 13 | O76: 12.285 | R76: 315ml/瓶
A77: 74 | B77: 2989 | C77: ISZWCW48632 | D77: 3304990039 | E77: 兰蔻玫瑰露清滢柔肤粉水400ml | F77: 60 | G77: 60 | H77: 36 | I77: 308.48 | J77: 18508.8 | L77: 1 | M77: 15 | N77: 13 | O77: 185.088 | R77: 400ml/瓶
A78: 75 | B78: 2992 | C78: ISZWCW48636 | D78: 3304990029 | E78: SK-IIR.N.A.超肌能紧致活肤霜50克(轻盈版) | F78: 18 | G78: 18 | H78: 9 | I78: 634.49 | J78: 11420.82 | L78: 1 | M78: 15 | N78: 13 | O78: 114.2082 | R78: 50g/瓶
A79: 76 | B79: 3000 | C79: ISZWCW48646 | D79: 2106909090 | E79: SWISSE维他命D400粒 | F79: 48 | G79: 57 | H79: 48 | I79: 107.55 | J79: 5162.4 | L79: 12 | M79: 0 | N79: 13 | O79: 619.488 | R79: 400粒/瓶
A80: 77 | B80: 3002 | C80: ISZWCW48648 | D80: 2106909090 | E80: SWISSE胶原蛋白肽发光片120片 | F80: 21 | G80: 71 | H80: 96 | I80: 172.53 | J80: 3623.13 | L80: 12 | M80: 0 | N80: 13 | O80: 434.7756 | R80: 120片/瓶
A81: 78 | B81: 3051 | C81: ISZWCW48682 | D81: 2106909090 | E81: LIFESPACE孕期益生菌胶囊50粒 | F81: 138 | G81: 139 | H81: 80 | I81: 147.03 | J81: 20290.14 | L81: 12 | M81: 0 | N81: 13 | O81: 2434.8168 | R81: 50粒/瓶
A82: 79 | B82: 3052 | C82: ISZWCW48683 | D82: 3304990029 | E82: BenzacAC祛痘凝胶50g | F82: 60 | G82: 138 | H82: 98 | I82: 87.51 | J82: 5250.6 | L82: 1 | M82: 15 | N82: 13 | O82: 52.506 | R82: 50g/支
A83: 80 | B83: 3105 | C83: ISZWCW48690 | D83: 3304990049 | E83: 佑天兰奢华璞俐莎艳肌保湿面膜(神经酰胺)28ml*4 | F83: 96 | G83: 125 | H83: 72 | I83: 41.02 | J83: 3937.92 | L83: 1 | M83: 0 | N83: 13 | O83: 39.3792 | R83: 4片/盒
A84: 81 | B84: 3494 | C84: ISZWCW48758 | D84: 3303000020 | E84: 大卫贝克汉姆精髓男士香水75ml | F84: 8 | G84: 108 | H84: 105 | I84: 69.92 | J84: 559.36 | L84: 3 | M84: 0 | N84: 13 | O84: 16.7808 | R84: 75ml
A85: 82 | B85: 4249 | C85: ISZWCW50147 | D85: 3305900000 | E85: 染发膏 | F85: 36 | G85: 36 | H85: 0 | I85: 43.72 | J85: 1573.92 | L85: 3 | M85: 0 | N85: 13 | O85: 47.2176 | R85: 50ml+50ml+15ml/盒
A86: 83 | B86: 4250 | C86: ISZWCW50148 | D86: 3305900000 | E86: 染发膏 | F86: 36 | G86: 36 | H86: 0 | I86: 43.72 | J86: 1573.92 | L86: 3 | M86: 0 | N86: 13 | O86: 47.2176 | R86: 50ml+50ml+15ml/盒
A87: 84 | B87: 4251 | C87: ISZWCW50149 | D87: 3305900000 | E87: 染发摩丝 | F87: 21 | G87: 21 | H87: 0 | I87: 31.47 | J87: 660.87 | L87: 3 | M87: 0 | N87: 13 | O87: 19.8261 | R87: 35ml+35ml+22.5ml/盒
A88: 85 | B88: 4252 | C88: ISZWCW50150 | D88: 3305900000 | E88: 染发摩丝 | F88: 21 | G88: 21 | H88: 0 | I88: 31.47 | J88: 660.87 | L88: 3 | M88: 0 | N88: 13 | O88: 19.8261 | R88: 35ml+35ml+22.5ml/盒
A89: 86 | B89: 4253 | C89: ISZWCW50151 | D89: 3305900000 | E89: 染发膏 | F89: 48 | G89: 48 | H89: 0 | I89: 33.97 | J89: 1630.56 | L89: 3 | M89: 0 | N89: 13 | O89: 48.9168 | R89: 60ml+60ml+22.5ml/盒
A90: 87 | B90: 4254 | C90: ISZWCW50153 | D90: 3305900000 | E90: 染发膏 | F90: 36 | G90: 36 | H90: 0 | I90: 43.72 | J90: 1573.92 | L90: 3 | M90: 0 | N90: 13 | O90: 47.2176 | R90: 50ml+50ml+15ml/盒
A91: 88 | B91: 4255 | C91: ISZWCW50154 | D91: 3305900000 | E91: 染发膏 | F91: 24 | G91: 24 | H91: 0 | I91: 43.72 | J91: 1049.28 | L91: 3 | M91: 0 | N91: 13 | O91: 31.4784 | R91: 50ml+50ml+15ml/盒
A92: 89 | B92: 4256 | C92: ISZWCW50155 | D92: 3305900000 | E92: 染发膏 | F92: 42 | G92: 42 | H92: 0 | I92: 33.04 | J92: 1387.68 | L92: 3 | M92: 0 | N92: 13 | O92: 41.6304 | R92: 50ml+50ml+15ml/盒
A93: 90 | B93: 4257 | C93: ISZWCW50159 | D93: 3305900000 | E93: 染发膏 | F93: 36 | G93: 36 | H93: 0 | I93: 43.72 | J93: 1573.92 | L93: 3 | M93: 0 | N93: 13 | O93: 47.2176 | R93: 50ml+50ml+15ml/盒
A94: 91 | B94: 3885 | C94: ISZWCW50162 | D94: 3305900000 | E94: 染发啫喱 | F94: 24 | G94: 72 | H94: 48 | I94: 36.72 | J94: 881.28 | L94: 3 | M94: 0 | N94: 13 | O94: 26.4384 | R94: 40ml+40ml/盒
A95: 92 | B95: 3886 | C95: ISZWCW50163 | D95: 3304990029 | E95: 护肤霜 | F95: 48 | G95: 60 | H95: 12 | I95: 57.72 | J95: 2770.56 | L95: 1 | M95: 15 | N95: 13 | O95: 27.7056 | R95: 100g/盒
A96: 93 | B96: 3889 | C96: ISZWCW50166 | D96: 3306200000 | E96: 牙线 | F96: 24 | G96: 48 | H96: 24 | I96: 10.47 | J96: 251.28 | L96: 3 | M96: 0 | N96: 13 | O96: 7.5384 | R96: 20m/盒
A97: 94 | B97: 3894 | C97: ISZWCW50175 | D97: 3401300090 | E97: 洁面乳 | F97: 24 | G97: 36 | H97: 12 | I97: 31.465 | J97: 755.16 | L97: 6.5 | M97: 0 | N97: 13 | O97: 49.0854 | R97: 150g/支
A98: 95 | B98: 3650 | C98: ISZWCW50212 | D98: 3401199090 | E98: 湿巾 | F98: 24 | G98: 33 | H98: 12 | I98: 37.84 | J98: 908.16 | L98: 6.5 | M98: 0 | N98: 13 | O98: 59.0304 | R98: 3 X 80张/袋
A99: 96 | B99: 3641 | C99: ISZWCW50216 | D99: 3306101090 | E99: 牙膏 | F99: 47 | G99: 77 | H99: 48 | I99: 12.78 | J99: 600.66 | L99: 3 | M99: 0 | N99: 13 | O99: 18.0198 | R99: 150g/支
A100: 97 | B100: 3234 | C100: ISZWCW50282 | D100: 3304910090 | E100: mistine羽翼粉饼S210g | F100: 180 | G100: 258 | H100: 120 | I100: 45.06 | J100: 8110.8 | L100: 5 | M100: 0 | N100: 13 | O100: 405.54 | R100: 10g/盒
A101: 98 | B101: 3233 | C101: ISZWCW50286 | D101: 3304910090 | E101: mistine陶瓷粉饼S210g | F101: 180 | G101: 288 | H101: 120 | I101: 43.15 | J101: 7767 | L101: 5 | M101: 0 | N101: 13 | O101: 388.35 | R101: 10g/盒
A102: 99 | B102: 3937 | C102: ISZWCW50313 | D102: 3307900000 | E102: 脱毛膏 | F102: 24 | G102: 48 | H102: 24 | I102: 22.68 | J102: 544.32 | L102: 3 | M102: 0 | N102: 13 | O102: 16.3296 | R102: 100ml/支
A103: 100 | B103: 3943 | C103: ISZWCW50322 | D103: 3304990039 | E103: 身体乳 | F103: 36 | G103: 48 | H103: 12 | I103: 18.13 | J103: 652.68 | L103: 1 | M103: 15 | N103: 13 | O103: 6.5268 | R103: 250ml/瓶
A104: 101 | B104: 3203 | C104: ISZWCW50330 | D104: 2106909090 | E104: 复合维生素矿物质片 | F104: 17 | G104: 140 | H104: 144 | I104: 44.8 | J104: 761.6 | L104: 12 | M104: 0 | N104: 13 | O104: 91.392 | R104: 200片/瓶
A105: 102 | B105: 3651 | C105: ISZWCW50387 | D105: 3305900000 | E105: 护发素 | F105: 24 | G105: 33 | H105: 12 | I105: 62.97 | J105: 1511.28 | L105: 3 | M105: 0 | N105: 13 | O105: 45.3384 | R105: 500ml/瓶
A106: 103 | B106: 3653 | C106: ISZWCW50403 | D106: 3307900000 | E106: 鼻腔清洗剂 | F106: 48 | G106: 55 | H106: 7 | I106: 20.27 | J106: 972.96 | L106: 3 | M106: 0 | N106: 13 | O106: 29.1888 | R106: 清洁器+5*6.3g/盒
A107: 104 | B107: 3638 | C107: ISZWCW50424 | D107: 3401300090 | E107: 沐浴露 | F107: 72 | G107: 103 | H107: 48 | I107: 16.45 | J107: 1184.4 | L107: 6.5 | M107: 0 | N107: 13 | O107: 76.986 | R107: 400ml/瓶
A108: 105 | B108: 4258 | C108: ISZWCW50441 | D108: 3304910090 | E108: 爽身粉 | F108: 16 | G108: 16 | H108: 0 | I108: 3.79 | J108: 60.64 | L108: 5 | M108: 0 | N108: 13 | O108: 3.032 | R108: 600g/瓶
A109: 106 | B109: 4259 | C109: ISZWCW50442 | D109: 3401300090 | E109: 沐浴露 | F109: 48 | G109: 48 | H109: 0 | I109: 66 | J109: 3168 | L109: 6.5 | M109: 0 | N109: 13 | O109: 205.92 | R109: 200mL/瓶
A110: 107 | B110: 4260 | C110: ISZWCW50443 | D110: 3304990039 | E110: 润肤油 | F110: 48 | G110: 48 | H110: 0 | I110: 66 | J110: 3168 | L110: 1 | M110: 15 | N110: 13 | O110: 31.68 | R110: 125mL/瓶
A111: 108 | B111: 4261 | C111: ISZWCW50446 | D111: 2106909090 | E111: 蛋白粉 | F111: 12 | G111: 12 | H111: 0 | I111: 55.83 | J111: 669.96 | L111: 12 | M111: 0 | N111: 13 | O111: 80.3952 | R111: 500g/罐
A112: 109 | B112: 4262 | C112: ISZWCW50449 | D112: 3307900000 | E112: 鼻腔清洗剂 | F112: 66 | G112: 66 | H112: 0 | I112: 8.05 | J112: 531.3 | L112: 3 | M112: 0 | N112: 13 | O112: 15.939 | R112: 15ml/瓶
A113: 110 | B113: 4263 | C113: ISZWCW50450 | D113: 3307900000 | E113: 鼻腔清洗剂 | F113: 60 | G113: 60 | H113: 0 | I113: 17.94 | J113: 1076.4 | L113: 3 | M113: 0 | N113: 13 | O113: 32.292 | R113: 100包/盒
A114: 111 | B114: 4264 | C114: ISZWCW50451 | D114: 2106909090 | E114: 蛋白粉 | F114: 6 | G114: 6 | H114: 0 | I114: 18.06 | J114: 108.36 | L114: 12 | M114: 0 | N114: 13 | O114: 13.0032 | R114: 2kg/罐
A115: 112 | B115: 4265 | C115: ISZWCW50453 | D115: 2106909090 | E115: 蛋白粉 | F115: 96 | G115: 96 | H115: 0 | I115: 3.18 | J115: 305.28 | L115: 12 | M115: 0 | N115: 13 | O115: 36.6336 | R115: 40g/袋
A116: 113 | B116: 4266 | C116: ISZWCW50456 | D116: 3924100000 | E116: 餐盘 | F116: 24 | G116: 24 | H116: 0 | I116: 5.45 | J116: 130.8 | L116: 6.5 | M116: 0 | N116: 13 | O116: 8.502 | R116: 1个/件
A117: 114 | B117: 4267 | C117: ISZWCW50457 | D117: 3924100000 | E117: 碗 | F117: 24 | G117: 24 | H117: 0 | I117: 3.65 | J117: 87.6 | L117: 6.5 | M117: 0 | N117: 13 | O117: 5.694 | R117: 1个/件
A118: 115 | B118: 4268 | C118: ISZWCW50458 | D118: 3924100000 | E118: 奶粉分装盒 | F118: 12 | G118: 12 | H118: 0 | I118: 99 | J118: 1188 | L118: 6.5 | M118: 0 | N118: 13 | O118: 77.22 | R118: 1个/件
A119: 116 | B119: 4269 | C119: ISZWCW50461 | D119: 3307900000 | E119: 鼻腔清洗剂 | F119: 48 | G119: 48 | H119: 0 | I119: 11.96 | J119: 574.08 | L119: 3 | M119: 0 | N119: 13 | O119: 17.2224 | R119: 50包/盒
A120: 117 | B120: 4270 | C120: ISZWCW50463 | D120: 3307900000 | E120: 鼻腔滋润剂 | F120: 70 | G120: 70 | H120: 0 | I120: 8.58 | J120: 600.6 | L120: 3 | M120: 0 | N120: 13 | O120: 18.018 | R120: 20ml/瓶
A121: 118 | B121: 4271 | C121: ISZWCW50464 | D121: 3307900000 | E121: 鼻腔清洗剂 | F121: 48 | G121: 48 | H121: 0 | I121: 12.72 | J121: 610.56 | L121: 3 | M121: 0 | N121: 13 | O121: 18.3168 | R121: 100*1.94g/盒
A122: 119 | B122: 4272 | C122: ISZWCW50468 | D122: 3304990029 | E122: 面霜 | F122: 72 | G122: 72 | H122: 0 | I122: 20.67 | J122: 1488.24 | L122: 1 | M122: 15 | N122: 13 | O122: 14.8824 | R122: 50g/盒
A123: 120 | B123: 4273 | C123: ISZWCW50473 | D123: 3401199090 | E123: 湿巾 | F123: 8 | G123: 8 | H123: 0 | I123: 23.59 | J123: 188.72 | L123: 6.5 | M123: 0 | N123: 13 | O123: 12.2668 | R123: 3包/袋
A124: 121 | B124: 4274 | C124: ISZWCW50478 | D124: 3304990039 | E124: 祛痘霜 | F124: 48 | G124: 48 | H124: 0 | I124: 109 | J124: 5232 | L124: 1 | M124: 15 | N124: 13 | O124: 52.32 | R124: 15ml/支
A125: 122 | B125: 4275 | C125: ISZWCW50480 | D125: 9619002000 | E125: 护垫 | F125: 32 | G125: 32 | H125: 0 | I125: 3.13 | J125: 100.16 | L125: 4 | M125: 0 | N125: 13 | O125: 4.0064 | R125: 30片/盒
A126: 123 | B126: 4276 | C126: ISZWCW50484 | D126: 2106909090 | E126: 蛋白粉 | F126: 12 | G126: 12 | H126: 0 | I126: 60.12 | J126: 721.44 | L126: 12 | M126: 0 | N126: 13 | O126: 86.5728 | R126: 1KG/瓶
A127: 124 | B127: 4277 | C127: ISZWCW50485 | D127: 2106909090 | E127: 益生菌滴剂 | F127: 48 | G127: 48 | H127: 0 | I127: 1.66 | J127: 79.68 | L127: 12 | M127: 0 | N127: 13 | O127: 9.5616 | R127: 5ml/盒
A128: 125 | B128: 4278 | C128: ISZWCW50487 | D128: 3306101090 | E128: 牙膏 | F128: 48 | G128: 48 | H128: 0 | I128: 50 | J128: 2400 | L128: 3 | M128: 0 | N128: 13 | O128: 72 | R128: 63g/支
A129: 126 | B129: 4279 | C129: ISZWCW50491 | D129: 3401300090 | E129: 洗手液 | F129: 36 | G129: 36 | H129: 0 | I129: 5.92 | J129: 213.12 | L129: 6.5 | M129: 0 | N129: 13 | O129: 13.8528 | R129: 250ml/瓶
A130: 127 | B130: 4280 | C130: ISZWCW50492 | D130: 3401300090 | E130: 洗手液 | F130: 36 | G130: 36 | H130: 0 | I130: 5.92 | J130: 213.12 | L130: 6.5 | M130: 0 | N130: 13 | O130: 13.8528 | R130: 250ml/瓶
A131: 128 | B131: 4281 | C131: ISZWCW50493 | D131: 3401300090 | E131: 洗手液 | F131: 36 | G131: 36 | H131: 0 | I131: 5.92 | J131: 213.12 | L131: 6.5 | M131: 0 | N131: 13 | O131: 13.8528 | R131: 250ml/瓶
A132: 129 | B132: 4282 | C132: ISZWCW50499 | D132: 3401300090 | E132: 沐浴液 | F132: 24 | G132: 24 | H132: 0 | I132: 21.73 | J132: 521.52 | L132: 6.5 | M132: 0 | N132: 13 | O132: 33.8988 | R132: 500ml/瓶
A133: 130 | B133: 4283 | C133: ISZWCW50511 | D133: 3304990039 | E133: 保湿霜 | F133: 12 | G133: 12 | H133: 0 | I133: 74.45 | J133: =I133*F133 -> 893.4 | L133: 1 | M133: 15 | N133: 13 | O133: =J133*L133/100 -> 8.934 | R133: 50ml/瓶
A134: 131 | B134: 4284 | C134: ISZWCW50514 | D134: 3305100090 | E134: 洗发水 | F134: 72 | G134: 72 | H134: 0 | I134: 19.91 | J134: 1433.52 | L134: 2 | M134: 0 | N134: 13 | O134: 28.6704 | R134: 385ml/瓶
A135: 132 | B135: 4285 | C135: ISZWCW50515 | D135: 3305100090 | E135: 洗发水 | F135: 24 | G135: 24 | H135: 0 | I135: 28.53 | J135: 684.72 | L135: 2 | M135: 0 | N135: 13 | O135: 13.6944 | R135: 385ml/瓶
A136: 133 | B136: 4286 | C136: ISZWCW50516 | D136: 3305900000 | E136: 护发素 | F136: 24 | G136: 24 | H136: 0 | I136: 62.43 | J136: 1498.32 | L136: 3 | M136: 0 | N136: 13 | O136: 44.9496 | R136: 385ml/瓶
A137: 134 | B137: 4287 | C137: ISZWCW50517 | D137: 3305900000 | E137: 护发素 | F137: 48 | G137: 48 | H137: 0 | I137: 8.23 | J137: 395.04 | L137: 3 | M137: 0 | N137: 13 | O137: 11.8512 | R137: 88.7ml/瓶
A138: 135 | B138: 4288 | C138: ISZWCW50521 | D138: 3306101090 | E138: 牙膏 | F138: 36 | G138: 36 | H138: 0 | I138: 11.24 | J138: 404.64 | L138: 3 | M138: 0 | N138: 13 | O138: 12.1392 | R138: 115g/盒
A139: 136 | B139: 4289 | C139: ISZWCW50523 | D139: 2106909090 | E139: 维C咀嚼片 | F139: 60 | G139: 60 | H139: 0 | I139: 10.01 | J139: 600.6 | L139: 12 | M139: 0 | N139: 13 | O139: 72.072 | R139: 100片/瓶
A140: 137 | B140: 4290 | C140: ISZWCW50524 | D140: 2106909090 | E140: 锌咀嚼片 | F140: 60 | G140: 60 | H140: 0 | I140: 9.05 | J140: 543 | L140: 12 | M140: 0 | N140: 13 | O140: 65.16 | R140: 100片/瓶
A141: 138 | B141: 4291 | C141: ISZWCW50527 | D141: 3307100000 | E141: 剃须乳 | F141: 24 | G141: 24 | H141: 0 | I141: 3.67 | J141: 88.08 | L141: 3 | M141: 0 | N141: 13 | O141: 2.6424 | R141: 150ml/支
A142: 139 | B142: 4292 | C142: ISZWCW50532 | D142: 3304990049 | E142: 面膜 | F142: 60 | G142: 60 | H142: 0 | I142: 3.12 | J142: 187.2 | L142: 1 | M142: 0 | N142: 13 | O142: 1.872 | R142: 1片/件
A143: 140 | B143: 4293 | C143: ISZWCW50533 | D143: 3304990029 | E143: 保湿霜 | F143: 144 | G143: 144 | H143: 0 | I143: 244 | J143: 35136 | L143: 1 | M143: 15 | N143: 13 | O143: 351.36 | R143: 100g/支
A144: 141 | B144: 4294 | C144: ISZWCW50545 | D144: 1704900000 | E144: 儿童软糖 | F144: 12 | G144: 12 | H144: 0 | I144: 52.7 | J144: 632.4 | L144: 10 | M144: 0 | N144: 13 | O144: 63.24 | R144: 150粒/瓶
A145: 142 | B145: 4295 | C145: ISZWCW50546 | D145: 3307900000 | E145: 脱毛膏 | F145: 60 | G145: 60 | H145: 0 | I145: 101 | J145: 6060 | L145: 3 | M145: 0 | N145: 13 | O145: 181.8 | R145: 150g/盒
A146: 143 | B146: 4296 | C146: ISZWCW50547 | D146: 3307900000 | E146: 脱毛膏 | F146: 24 | G146: 24 | H146: 0 | I146: 4.41 | J146: 105.84 | L146: 3 | M146: 0 | N146: 13 | O146: 3.1752 | R146: 75g/盒
A147: 144 | B147: 4297 | C147: ISZWCW50548 | D147: 3307900000 | E147: 脱毛膏 | F147: 66 | G147: 66 | H147: 0 | I147: 4.4 | J147: 290.4 | L147: 3 | M147: 0 | N147: 13 | O147: 8.712 | R147: 20g/盒
A148: 145 | B148: 4298 | C148: ISZWCW50549 | D148: 1504200091 | E148: 鱼油胶囊 | F148: 48 | G148: 48 | H148: 0 | I148: 7.43 | J148: 356.64 | L148: 6 | M148: 0 | N148: 13 | O148: 21.3984 | R148: 150粒/瓶
A149: 146 | B149: 4299 | C149: ISZWCW50556 | D149: 3306200000 | E149: 牙线 | F149: 24 | G149: 24 | H149: 0 | I149: 9.8 | J149: 235.2 | L149: 3 | M149: 0 | N149: 13 | O149: 7.056 | R149: 70支/袋
A150: 147 | B150: 4300 | C150: ISZWCW50557 | D150: 3306200000 | E150: 牙线 | F150: 24 | G150: 24 | H150: 0 | I150: 9.8 | J150: 235.2 | L150: 3 | M150: 0 | N150: 13 | O150: 7.056 | R150: 100支/袋
A151: 148 | B151: 4301 | C151: ISZWCW50570 | D151: 3304990039 | E151: 护脚霜 | F151: 48 | G151: 48 | H151: 0 | I151: 99 | J151: 4752 | L151: 1 | M151: 15 | N151: 13 | O151: 47.52 | R151: 60ml/支
A152: 149 | B152: 4302 | C152: ISZWCW50571 | D152: 8509900000 | E152: 修脚器替换头 | F152: 24 | G152: 24 | H152: 0 | I152: 15.41 | J152: 369.84 | L152: 6 | M152: 0 | N152: 13 | O152: 22.1904 | R152: 2个/件
A153: 150 | B153: 4303 | C153: ISZWCW50573 | D153: 3305900000 | E153: 护发素 | F153: 24 | G153: 24 | H153: 0 | I153: 12.9 | J153: 309.6 | L153: 3 | M153: 0 | N153: 13 | O153: 9.288 | R153: 385ml/瓶
A154: 151 | B154: 4304 | C154: ISZWCW50577 | D154: 3304990029 | E154: 精华乳 | F154: 24 | G154: 24 | H154: 0 | I154: 18.56 | J154: 445.44 | L154: 1 | M154: 15 | N154: 13 | O154: 4.4544 | R154: 50g/瓶
A155: 152 | B155: 4305 | C155: ISZWCW50579 | D155: 3304990049 | E155: 面膜 | F155: 48 | G155: 48 | H155: 0 | I155: 3.95 | J155: 189.6 | L155: 1 | M155: 0 | N155: 13 | O155: 1.896 | R155: 30g/片
A156: 153 | B156: 4306 | C156: ISZWCW50592 | D156: 2106909090 | E156: 复合维生素胶囊 | F156: 48 | G156: 48 | H156: 0 | I156: 248 | J156: 11904 | L156: 12 | M156: 0 | N156: 13 | O156: 1428.48 | R156: 120粒/瓶
A157: 154 | B157: 4307 | C157: ISZWCW50595 | D157: 9603210000 | E157: 牙刷 | F157: 48 | G157: 48 | H157: 0 | I157: 50 | J157: 2400 | L157: 8 | M157: 0 | N157: 13 | O157: 192 | R157: 1支/件
A158: 155 | B158: 4308 | C158: ISZWCW50597 | D158: 3305900000 | E158: 润发精华 | F158: 36 | G158: 36 | H158: 0 | I158: 12.87 | J158: 463.32 | L158: 3 | M158: 0 | N158: 13 | O158: 13.8996 | R158: 80ml/瓶
A159: 156 | B159: 4309 | C159: ISZWCW50599 | D159: 3304200091 | E159: 眼线笔 | F159: 16 | G159: 16 | H159: 0 | I159: 48.15 | J159: 770.4 | L159: 5 | M159: 15 | N159: 13 | O159: 38.52 | R159: 1.08g/支
A160: 157 | B160: 4310 | C160: ISZWCW50605 | D160: 3304990039 | E160: 粉底液 | F160: 36 | G160: 36 | H160: 0 | I160: 113.5 | J160: 4086 | L160: 1 | M160: 15 | N160: 13 | O160: 40.86 | R160: 30ml/支
A161: 158 | B161: 4311 | C161: ISZWCW50606 | D161: 3304990039 | E161: 粉底液 | F161: 18 | G161: 18 | H161: 0 | I161: 113.5 | J161: 2043 | L161: 1 | M161: 15 | N161: 13 | O161: 20.43 | R161: 30ml/支
A162: 159 | B162: 4312 | C162: ISZWCW50609 | D162: 3304200091 | E162: 眼影盘 | F162: 6 | G162: 6 | H162: 0 | I162: 85.1 | J162: 510.6 | L162: 5 | M162: 15 | N162: 13 | O162: 25.53 | R162: 3*2g/盒
A163: 160 | B163: 4313 | C163: ISZWCW50620 | D163: 3304200091 | E163: 眼影 | F163: 30 | G163: 30 | H163: 0 | I163: 9.52 | J163: 285.6 | L163: 5 | M163: 0 | N163: 13 | O163: 14.28 | R163: 8.1g/盒
A164: 161 | B164: 4314 | C164: ISZWCW50639 | D164: 3304990039 | E164: 爽肤水 | F164: 36 | G164: 36 | H164: 0 | I164: 15.09 | J164: 543.24 | L164: 1 | M164: 15 | N164: 13 | O164: 5.4324 | R164: 100ml/瓶
A165: 162 | B165: 3394 | C165: ISZWCW50806 | D165: 3304990039 | E165: 日霜 | F165: 12 | G165: 15 | H165: 6 | I165: 74.45 | J165: 893.4 | L165: 1 | M165: 15 | N165: 13 | O165: 8.934 | R165: 50ml/瓶
A166: 163 | B166: 3386 | C166: ISZWCW50816 | D166: 3304990039 | E166: 日霜 | F166: 12 | G166: 17 | H166: 6 | I166: 74.38 | J166: 892.56 | L166: 1 | M166: 15 | N166: 13 | O166: 8.9256 | R166: 50ml/瓶
A167: 164 | B167: 3400 | C167: ISZWCW50822 | D167: 9603210000 | E167: 牙刷 | F167: 36 | G167: 57 | H167: 60 | I167: 8.52 | J167: 306.72 | L167: 8 | M167: 0 | N167: 13 | O167: 24.5376 | R167: 1个/支
A168: 165 | B168: 3459 | C168: ISZWCW50909 | D168: 3401300090 | E168: 磨砂膏 | F168: 48 | G168: 60 | H168: 30 | I168: 20.79 | J168: 997.92 | L168: 6.5 | M168: 0 | N168: 13 | O168: 64.8648 | R168: 120ml/支
A169: 166 | B169: 3399 | C169: ISZWCW50943 | D169: 9603210000 | E169: 牙刷 | F169: 36 | G169: 81 | H169: 96 | I169: 8.51 | J169: 306.36 | L169: 8 | M169: 0 | N169: 13 | O169: 24.5088 | R169: 1个/支
A170: 167 | B170: 4315 | C170: ISZWCW51097 | D170: 2106909090 | E170: 大蒜胶囊 | F170: 24 | G170: 24 | H170: 0 | I170: 40.7 | J170: 976.8 | L170: 12 | M170: 0 | N170: 13 | O170: 117.216 | R170: 60粒/瓶
A171: 168 | B171: 4316 | C171: ISZWCW51098 | D171: 2106909090 | E171: 大蒜胶囊 | F171: 24 | G171: 24 | H171: 0 | I171: 72.2 | J171: 1732.8 | L171: 12 | M171: 0 | N171: 13 | O171: 207.936 | R171: 120粒/瓶
A172: 169 | B172: 4317 | C172: ISZWCW51120 | D172: 2106909090 | E172: 维生素泡腾片 | F172: 24 | G172: 24 | H172: 0 | I172: 62.79 | J172: 1506.96 | L172: 12 | M172: 0 | N172: 13 | O172: 180.8352 | R172: 60片/盒
A173: 170 | B173: 4318 | C173: ISZWCW51122 | D173: 2106909090 | E173: 维生素泡腾片 | F173: 24 | G173: 24 | H173: 0 | I173: 62.79 | J173: 1506.96 | L173: 12 | M173: 0 | N173: 13 | O173: 180.8352 | R173: 60片/盒
A174: 171 | B174: 4319 | C174: ISZWCW51123 | D174: 2106909090 | E174: 锌元素泡腾片 | F174: 48 | G174: 48 | H174: 0 | I174: 24.41 | J174: 1171.68 | L174: 12 | M174: 0 | N174: 13 | O174: 140.6016 | R174: 10片/瓶
A175: 172 | B175: 4320 | C175: ISZWCW51125 | D175: 2106909090 | E175: 泡腾片 | F175: 24 | G175: 24 | H175: 0 | I175: 16.58 | J175: 397.92 | L175: 12 | M175: 0 | N175: 13 | O175: 47.7504 | R175: 10片/瓶
A176: 173 | B176: 4321 | C176: ISZWCW51140 | D176: 3305100090 | E176: 洗发水 | F176: 72 | G176: 72 | H176: 0 | I176: 42.87 | J176: 3086.64 | L176: 2 | M176: 0 | N176: 13 | O176: 61.7328 | R176: 500ml/瓶
A177: 174 | B177: 4322 | C177: ISZWCW51151 | D177: 3304990029 | E177: 护肤霜 | F177: 60 | G177: 60 | H177: 0 | I177: 19.95 | J177: 1197 | L177: 1 | M177: 15 | N177: 13 | O177: 11.97 | R177: 125g/支
A178: 175 | B178: 4323 | C178: ISZWCW51155 | D178: 3401300090 | E178: 沐浴油 | F178: 24 | G178: 24 | H178: 0 | I178: 51 | J178: 1224 | L178: 6.5 | M178: 0 | N178: 13 | O178: 79.56 | R178: 1.25L/瓶
A179: 176 | B179: 4324 | C179: ISZWCW51156 | D179: 3304990039 | E179: 爽肤水 | F179: 36 | G179: 36 | H179: 0 | I179: 54.81 | J179: 1973.16 | L179: 1 | M179: 15 | N179: 13 | O179: 19.7316 | R179: 1.25L/瓶
A180: 177 | B180: 4325 | C180: ISZWCW51171 | D180: 3401300090 | E180: 沐浴油 | F180: 24 | G180: 24 | H180: 0 | I180: 67.06 | J180: 1609.44 | L180: 6.5 | M180: 0 | N180: 13 | O180: 104.6136 | R180: 1L/瓶
A181: 178 | B181: 4326 | C181: ISZWCW51172 | D181: 3304990029 | E181: 护肤霜 | F181: 48 | G181: 48 | H181: 0 | I181: 19.05 | J181: 914.4 | L181: 1 | M181: 15 | N181: 13 | O181: 9.144 | R181: 200g/支
A182: 179 | B182: 4327 | C182: ISZWCW51176 | D182: 3307900000 | E182: 脱毛蜡 | F182: 32 | G182: 32 | H182: 0 | I182: 31.15 | J182: 996.8 | L182: 3 | M182: 0 | N182: 13 | O182: 29.904 | R182: 100g/盒
A183: 180 | B183: 4328 | C183: ISZWCW51177 | D183: 3307900000 | E183: 脱毛蜡纸 | F183: 60 | G183: 60 | H183: 0 | I183: 28.25 | J183: 1695 | L183: 3 | M183: 0 | N183: 13 | O183: 50.85 | R183: 40张/盒
A184: 181 | B184: 4329 | C184: ISZWCW51178 | D184: 3401300090 | E184: 沐浴露 | F184: 40 | G184: 40 | H184: 0 | I184: 28.91 | J184: 1156.4 | L184: 6.5 | M184: 0 | N184: 13 | O184: 75.166 | R184: 312g/瓶
A185: 182 | B185: 4330 | C185: ISZWCW51264 | D185: 3401300090 | E185: 沐浴油 | F185: 24 | G185: 24 | H185: 0 | I185: 35.95 | J185: 862.8 | L185: 6.5 | M185: 0 | N185: 13 | O185: 56.082 | R185: 500ml/瓶
A186: 183 | B186: 4331 | C186: ISZWCW51265 | D186: 3304990029 | E186: 面霜 | F186: 48 | G186: 48 | H186: 0 | I186: 51.8 | J186: 2486.4 | L186: 1 | M186: 15 | N186: 13 | O186: 24.864 | R186: 500g/瓶
A187: 184 | B187: 4332 | C187: ISZWCW51282 | D187: 3304990029 | E187: 身体乳 | F187: 24 | G187: 24 | H187: 0 | I187: 28.55 | J187: 685.2 | L187: 1 | M187: 15 | N187: 13 | O187: 6.852 | R187: 250g/瓶
A188: 185 | B188: 3996 | C188: ISZWCW51334 | D188: 3304990039 | E188: 身体乳 | F188: 32 | G188: 48 | H188: 16 | I188: 4.13 | J188: 132.16 | L188: 1 | M188: 15 | N188: 13 | O188: 1.3216 | R188: 50ml/瓶
A189: 186 | B189: 3999 | C189: ISZWCW51340 | D189: 3401300090 | E189: 沐浴露 | F189: 24 | G189: 32 | H189: 8 | I189: 21.455 | J189: 514.92 | L189: 6.5 | M189: 0 | N189: 13 | O189: 33.4698 | R189: 230ml/瓶
A190: 187 | B190: 4005 | C190: ISZWCW51346 | D190: 3306101090 | E190: 牙膏 | F190: 72 | G190: 144 | H190: 72 | I190: 11.76 | J190: 846.72 | L190: 3 | M190: 0 | N190: 13 | O190: 25.4016 | R190: 100g/支
A191: 188 | B191: 3453 | C191: ISZWCW51373 | D191: 2106909090 | E191: 钙+维生素D咀嚼片 | F191: 180 | G191: 1645 | H191: 3012 | I191: 39.2 | J191: 7056 | L191: 12 | M191: 0 | N191: 13 | O191: 846.72 | R191: 150片/瓶
A192: 189 | B192: 4333 | C192: ISZWCW51425 | D192: 3304990039 | E192: 身体油 | F192: 24 | G192: 24 | H192: 0 | I192: 109 | J192: 2616 | L192: 1 | M192: 15 | N192: 13 | O192: 26.16 | R192: 150ml/瓶
A193: 190 | B193: 4334 | C193: ISZWCW51497 | D193: 8509900000 | E193: 修脚器替换头 | F193: 24 | G193: 24 | H193: 0 | I193: 32.45 | J193: 778.8 | L193: 6 | M193: 0 | N193: 13 | O193: 46.728 | R193: 1个/件
A194: 191 | B194: 4335 | C194: ISZWCW51498 | D194: 3305900000 | E194: 护发素 | F194: 59 | G194: 59 | H194: 0 | I194: 18.38 | J194: 1084.42 | L194: 3 | M194: 0 | N194: 13 | O194: 32.5326 | R194: 200ml/瓶
A195: 192 | B195: 4336 | C195: ISZWCW51499 | D195: 3305300000 | E195: 发胶 | F195: 36 | G195: 36 | H195: 0 | I195: 15.72 | J195: 565.92 | L195: 3 | M195: 0 | N195: 13 | O195: 16.9776 | R195: 150ml/支
A196: 193 | B196: 4337 | C196: ISZWCW51503 | D196: 3401300090 | E196: 洁面乳 | F196: 40 | G196: 40 | H196: 0 | I196: 14.47 | J196: 578.8 | L196: 6.5 | M196: 0 | N196: 13 | O196: 37.622 | R196: 125ml/瓶
A197: 194 | B197: 4338 | C197: ISZWCW51507 | D197: 3304200091 | E197: 眼影盘 | F197: 24 | G197: 24 | H197: 0 | I197: 17.75 | J197: =I197*F197 -> 426 | L197: 5 | M197: 0 | N197: 13 | O197: =J197*L197/100 -> 21.3 | R197: 10.5g/盒
A198: 195 | B198: 4339 | C198: ISZWCW51508 | D198: 3304200091 | E198: 眼影盘 | F198: 24 | G198: 24 | H198: 0 | I198: 17.4 | J198: 417.6 | L198: 5 | M198: 0 | N198: 13 | O198: 20.88 | R198: 18g/盒
A199: 196 | B199: 4340 | C199: ISZWCW51509 | D199: 3304200091 | E199: 眼影盘 | F199: 30 | G199: 30 | H199: 0 | I199: 7.98 | J199: 239.4 | L199: 5 | M199: 0 | N199: 13 | O199: 11.97 | R199: 4g/盒
A200: 197 | B200: 4341 | C200: ISZWCW51510 | D200: 3304200091 | E200: 眼影盘 | F200: 24 | G200: 24 | H200: 0 | I200: 17.75 | J200: 426 | L200: 5 | M200: 0 | N200: 13 | O200: 21.3 | R200: 15.6g/盒
... 125 more rows

Sheet 一般贸易进口及电商进口税费计算公式
A1: 一般贸易进口征税计算公式
A2: 关税 | B2: 完税价格*关税税率
A3: 消费税 | B3: (完税价格+关税)*消费税税率/(1-消费税税率)
A4: 增值税 | B4: （完税价格+关税+消费税）* 增值税税率
A5: 综合税率 | B5: （关税税率+增值税税率+消费税+关税税率*增值税税率）/1-消费税税率
A6: 一般贸易综合税款估算 | B6: 即关税+消费税+增值税=完税价格*综合税率
A7: 进口电商税款计算公式
A8: 关税 | B8: 0
A9: 消费税 | B9: 完税价格*消费税税率*0.7/(1-消费税税率)
A10: 增值税 | B10: （完税价格+消费税）* 增值税税率*0.7
A11: 电商综合税率 | B11: （增值税税率+消费税）*0.7/1-消费税税率
A12: 电商综合税款 | B12: 即消费税+增值税=完税价格*电商综合税率
